bitfinex-derivatives/quotes_SOLF0:USTF0_20250310
["timestamp","ask_amount","ask_price","bid_price","bid_amount"]
[1741572847541,6.631e-05,127.6,127.59,7.839]
[1741572849643,6.631e-05,127.6,127.58,38.9991]
[1741572849849,6.631e-05,127.6,127.58,31.16]
[1741572850056,6.631e-05,127.6,127.59,7.839]
[1741572854746,6.631e-05,127.6,127.59,31.71221202]
[1741572854951,6.631e-05,127.6,127.59,33.76391202]
[1741572855152,7.8338,127.68,127.64,7.8355]
[1741572855352,7.8338,127.68,127.65,31.16]
[1741572856352,0.05313655,127.68,127.65,39.05348171]
[1741572857050,0.05313655,127.68,127.65,31.21818171]
[1741572857553,0.05313655,127.68,127.67,7.8341]
[1741572857949,0.05313655,127.68,127.65,31.21818171]
[1741572858151,0.05313655,127.68,127.65,39.05318171]
[1741572858655,0.05313655,127.68,127.65,31.21818171]
[1741572859451,0.05313655,127.68,127.65,39.05318171]
[1741572859657,0.05313655,127.68,127.65,31.21818171]
[1741572860046,0.05313655,127.68,127.66,7.8342]
[1741572860355,0.05313655,127.68,127.65,31.21818171]
[1741572860653,0.05313655,127.68,127.66,7.8344]
[1741572860855,0.05313655,127.68,127.65,31.21818171]
[1741572861457,3.655e-05,127.68,127.67,7.8341]
[1741572862857,3.655e-05,127.68,127.67,27.78731202]
[1741572863055,12.0196,127.78,127.72,7.8308]
[1741572863358,12.0196,127.78,127.66,1.9326]
[1741572863359,4.1921,127.78,127.73,31.14]
[1741572863553,2.064,127.78,127.73,31.14]
[1741572863752,2.064,127.78,127.73,38.9699]
[1741572864159,2.064,127.78,127.74,7.8297]
[1741572864461,0.05361365,127.77,127.74,7.89008613]
[1741572864657,0.05361365,127.77,127.74,0.06038613]
[1741572864959,0.05361365,127.77,127.74,22.13869815]
[1741572865151,1.365e-05,127.77,127.76,7.8285]
[1741572865353,1.365e-05,127.77,127.76,38.9685]
[1741572865555,1.365e-05,127.77,127.76,62.84171202]
[1741572865750,43.02150761,127.85,127.76,55.01321202]
[1741572865951,30.63280761,127.85,127.84,19.95321202]
[1741572866156,85.86634768,127.86,127.84,19.95321202]
[1741572866458,85.86634768,127.86,127.85,31.14]
[1741572866850,85.86634768,127.86,127.78,19.95321202]
[1741572867059,85.86634768,127.86,127.84,0.05851525]
[1741572867359,85.91599338,127.86,127.84,0.0571161]
[1741572868358,85.91599338,127.86,127.85,7.823]
[1741572868559,85.91599338,127.86,127.84,0.0571161]
[1741572868859,85.91599338,127.86,127.84,7.8803161]
[1741572869061,85.91599338,127.86,127.84,0.0571161]
[1741572869457,361.30333405,127.91,127.84,0.0571161]
[1741572869458,33.72720567,127.93,127.84,0.0571161]
[1741572869957,41.54540567,127.93,127.87,7.8216]
[1741572870153,33.72720567,127.93,127.88,31.1]
[1741572870360,31.70870567,127.9,127.83,31.1]
[1741572870654,0.06004314,127.88,127.85,0.05704905]
[1741572870859,31.70870567,127.87,127.79,31.1]
[1741572871049,31.70870567,127.84,127.79,31.1]
[1741572871959,4.113,127.86,127.79,31.1]
[1741572872160,0.05666787,127.83,127.8,0.05686516]
[1741572872658,0.05666787,127.83,127.81,7.8255]
[1741572872860,0.05666787,127.83,127.82,31.1]
[1741572873361,6.787e-05,127.83,127.82,38.9249]
[1741572874365,6.787e-05,127.83,127.81,7.825]
[1741572874566,6.787e-05,127.83,127.82,31.1]
[1741572874958,7.82426787,127.83,127.8,0.05686516]
[1741572875266,6.787e-05,127.83,127.8,0.05686516]
[1741572875758,1.93626787,127.83,127.8,0.05686516]
[1741572876566,7.8249,127.82,127.8,0.05686516]
[1741572877261,1.93626787,127.83,127.8,0.05686516]
[1741572877759,31.70870567,127.82,127.8,0.05686516]
[1741572877959,39.53400567,127.82,127.8,0.05686516]
[1741572878161,31.70870567,127.82,127.8,0.05686516]
[1741572878663,1.93626787,127.83,127.8,0.05686516]
[1741572880863,7.8255,127.81,127.8,0.05686516]
[1741572881064,31.70870567,127.82,127.72,4.6263]
[1741572881258,31.70870567,127.82,127.74,7.8297]
[1741572881464,31.70870567,127.82,127.73,31.08]
[1741572881861,31.70870567,127.82,127.74,7.8297]
[1741572882061,31.70870567,127.79,127.73,31.08]
[1741572882362,31.70870567,127.79,127.77,0.05723324]
[1741572882363,0.05489561,127.79,127.77,0.05723324]
[1741572882963,0.05489561,127.79,127.78,7.8273]
[1741572883363,0.05489561,127.79,127.77,7.88483324]
[1741572883766,0.05489561,127.79,127.77,0.05723324]
[1741572885869,7.8273,127.78,127.77,0.05723324]
[1741572886070,0.05489561,127.79,127.77,0.05723324]
[1741572886373,7.88209561,127.79,127.77,0.05723324]
[1741572886572,0.05489561,127.79,127.77,0.05723324]
[1741572886975,7.8273,127.78,127.77,0.05723324]
[1741572887571,31.70870567,127.78,127.69,6.0675]
[1741572887869,2.0289,127.77,127.7,31.08]
[1741572888065,9.8573,127.77,127.7,31.08]
[1741572888266,2.0289,127.77,127.7,31.08]
[1741572888678,0.05027526,127.75,127.72,0.0507408]
[1741572889175,0.05027526,127.75,127.72,7.8813408]
[1741572889374,0.05027526,127.75,127.72,0.0507408]
[1741572889575,0.05027526,127.75,127.73,31.08]
[1741572889980,0.05027526,127.75,127.72,0.0507408]
[1741572890173,31.75898093,127.75,127.72,0.0507408]
[1741572890572,0.05027526,127.75,127.72,0.0507408]
[1741572892178,7.8301,127.74,127.72,0.0507408]
[1741572892481,0.05027526,127.75,127.72,0.0507408]
[1741572892675,7.8312,127.72,127.66,31.1]
[1741572892875,31.1,127.73,127.67,7.8337]
[1741572893076,31.1,127.73,127.65,31.1]
[1741572893275,7.8318,127.71,127.65,31.1]
[1741572893478,7.8318,127.71,127.67,7.8339]
[1741572893876,0.05334374,127.7,127.68,0.05338176]
[1741572894374,7.8328,127.69,127.68,0.05338176]
[1741572895374,0.05334374,127.7,127.68,0.05338176]
[1741572897674,7.88594374,127.7,127.68,0.05338176]
[1741572898479,7.8328,127.69,127.68,0.05338176]
[1741572898981,7.88574374,127.7,127.68,0.05338176]
[1741572899586,0.05334374,127.7,127.68,0.05338176]
[1741572899785,7.88564374,127.7,127.68,0.05338176]
[1741572900084,0.05334374,127.7,127.68,0.05338176]
[1741572901583,7.88604374,127.7,127.68,0.05338176]
[1741572902090,0.05334374,127.7,127.68,0.05338176]
[1741572902987,31.70870567,127.69,127.61,31.1]
[1741572903182,2.1151,127.68,127.61,31.1]
[1741572903382,2.1151,127.68,127.64,7.8355]
[1741572903780,9.9488,127.68,127.64,7.8354]
[1741572903988,2.1151,127.68,127.61,31.1]
[1741572904187,0.05398454,127.67,127.65,0.05281523]
[1741572905089,7.8347,127.66,127.65,0.05281523]
[1741572905890,7.88828454,127.67,127.65,0.05281523]
[1741572906089,0.05398454,127.67,127.65,0.05281523]
[1741572906287,31.15398454,127.67,127.58,3.9789]
[1741572906587,31.70870567,127.66,127.58,3.9789]
[1741572906791,2.1151,127.68,127.59,31.1]
[1741572907090,9.9488,127.68,127.59,31.1]
[1741572907284,31.1,127.71,127.61,31.70870567]
[1741572907485,0.05123388,127.65,127.62,33.09899811]
[1741572907679,31.1,127.71,127.62,33.0425]
[1741572907885,31.1,127.71,127.63,1.9961]
[1741572908286,31.1,127.71,127.68,7.8333]
[1741572908687,4.0647,127.73,127.65,31.1]
[1741572908889,0.05097809,127.71,127.68,0.05908998]
[1741572909188,4.1786,127.78,127.69,31.1]
[1741572909791,7.8289,127.76,127.69,31.1]
[1741572909990,4.1786,127.78,127.69,31.1]
[1741572910191,4.1786,127.78,127.69,33.055]
[1741572910384,0.05821159,127.75,127.72,0.05707894]
[1741572914684,0.05821159,127.75,127.73,31.1]
[1741572915086,0.05821159,127.75,127.73,38.93]
[1741572915284,0.05821159,127.75,127.73,31.1]
[1741572915688,0.05821159,127.75,127.72,0.05707894]
[1741572916790,0.05821159,127.75,127.72,7.88787894]
[1741572917184,0.05821159,127.75,127.74,7.8298]
[1741572917584,1.159e-05,127.75,127.74,7.8298]
[1741572917992,1.159e-05,127.75,127.74,14.0123]
[1741572918191,1.159e-05,127.75,127.74,17.9323]
[1741572918583,5.9463,127.87,127.74,10.1025]
[1741572918787,5.9463,127.87,127.76,31.70870567]
[1741572919095,13.7686,127.87,127.77,31.08]
[1741572919296,11.7564,127.87,127.82,7.8247]
[1741572919497,11.7564,127.87,127.83,31.08]
[1741572919687,7.8225,127.86,127.83,31.08]
[1741572919889,3.9341,127.87,127.83,31.08]
[1741572920189,1.9855,127.87,127.83,31.08]
[1741572920392,7.8201,127.9,127.83,31.08]
[1741572920585,0.05722871,127.86,127.84,0.05529124]
[1741572920785,7.822,127.87,127.84,0.05529124]
[1741572920990,0.05139358,127.86,127.84,0.05529124]
[1741572921195,31.70870567,127.89,127.84,0.05529124]
[1741572921395,7.87235514,127.86,127.84,0.05529124]
[1741572921595,0.04935514,127.86,127.84,0.05529124]
[1741572921894,31.75806081,127.86,127.8,31.08]
[1741572922195,2.0391,127.85,127.8,31.08]
[1741572922501,7.824,127.84,127.8,31.08]
[1741572923093,7.87941884,127.83,127.81,0.04964723]
[1741572923291,0.05511884,127.83,127.81,0.04964723]
[1741572923492,31.76382451,127.83,127.81,0.04964723]
[1741572923794,31.76382451,127.83,127.76,31.08]
[1741572923996,31.70870567,127.8,127.74,63.75238423]
[1741572924597,7.8268,127.79,127.74,71.58178423]
[1741572924791,7.8268,127.79,127.74,63.75238423]
[1741572925096,31.70870567,127.8,127.74,63.75238423]
[1741572925494,0.05776001,127.78,127.76,0.05579711]
[1741572926498,0.05776001,127.78,127.77,7.8279]
[1741572927593,0.05776001,127.78,127.77,38.9079]
[1741572928893,0.05776001,127.78,127.77,31.08]
[1741572929392,0.05776001,127.78,127.77,38.9079]
[1741572929593,31.08,127.85,127.77,31.08]
[1741572930097,7.8241,127.84,127.77,31.08]
[1741572930398,37.66070567,127.89,127.78,1.9277]
[1741572930694,7.8213,127.88,127.83,7.8238]
[1741572930894,0.05817343,127.85,127.83,31.06]
[1741572931090,0.05817343,127.85,127.84,7.8236]
[1741572931292,0.05817343,127.85,127.83,31.06]
[1741572932190,0.05817343,127.85,127.83,38.884]
[1741572932389,0.05817343,127.85,127.82,0.05975902]
[1741572932594,7.88157343,127.85,127.82,0.05975902]
[1741572932795,0.05817343,127.85,127.82,0.05975902]
[1741572933199,7.824,127.84,127.82,0.05975902]
[1741572933501,0.05817343,127.85,127.82,0.05975902]
[1741572933797,7.8242,127.83,127.82,0.05975902]
[1741572934001,0.05817343,127.85,127.82,0.05975902]
[1741572934297,7.88147343,127.85,127.82,0.05975902]
[1741572934495,0.05817343,127.85,127.82,0.05975902]
[1741572934695,0.05817343,127.85,127.82,31.11975902]
[1741572934894,0.05817343,127.85,127.82,38.94425902]
[1741572935098,0.05817343,127.85,127.82,31.11975902]
[1741572935494,0.05817343,127.85,127.83,7.8242]
[1741572936505,0.05817343,127.85,127.82,31.11975902]
[1741572936894,0.05817343,127.85,127.84,7.8236]
[1741572937997,0.05817343,127.85,127.82,31.11975902]
[1741572938199,0.05817343,127.85,127.83,7.8239]
[1741572938399,0.05817343,127.85,127.83,38.8839]
[1741572938601,0.05817343,127.85,127.83,31.06]
[1741572939305,0.05817343,127.85,127.84,7.8236]
[1741572939703,289.90870567,127.92,127.83,31.06]
[1741572939909,258.2,127.92,127.83,31.06]
[1741572940101,7.8196,127.91,127.84,2.0167]
[1741572940306,258.2,127.92,127.84,2.0167]
[1741572940500,4.1718,127.94,127.84,33.72540567]
[1741572940700,7.8185,127.93,127.84,33.72540567]
[1741572940901,0.05547913,127.9,127.88,0.05020872]
[1741572941105,289.80870567,127.98,127.89,31.06]
[1741572941408,289.80870567,127.98,127.93,7.818]
[1741572941607,289.80870567,127.98,127.93,31.06]
[1741572941905,7.8161,127.97,127.93,31.06]
[1741572942311,0.05566193,127.96,127.94,0.05637133]
[1741572942808,7.87236193,127.96,127.94,0.05637133]
[1741572943200,0.05566193,127.96,127.94,0.05637133]
[1741572943805,7.8169,127.95,127.94,0.05637133]
[1741572944006,0.05566193,127.96,127.94,0.05637133]
[1741572944405,7.87206193,127.96,127.94,0.05637133]
[1741572944606,0.05566193,127.96,127.94,0.05637133]
[1741572945011,7.8169,127.95,127.94,0.05637133]
[1741572946503,0.05566193,127.96,127.94,0.05637133]
[1741572946911,7.8169,127.95,127.94,0.05637133]
[1741572947210,0.05566193,127.96,127.94,0.05637133]
[1741572948911,158.71581931,128.08,127.94,0.05637133]
[1741572949111,31.70870567,128.03,127.93,31.04]
[1741572949414,31.70870567,128.0,127.93,31.04]
[1741572949609,62.72870567,128.0,127.93,31.04]
[1741572949813,7.8166,127.96,127.92,31.02]
[1741572950008,62.72870567,128.0,127.92,31.02]
[1741572950214,0.05508949,127.95,127.93,0.05019601]
[1741572950410,7.8164,127.96,127.93,0.05019601]
[1741572950711,62.72870567,128.0,127.93,0.05019601]
[1741572950712,0.04931223,127.95,127.93,0.05019601]
[1741572950908,7.8164,127.96,127.93,0.05019601]
[1741572951114,0.05950062,127.95,127.93,0.05019601]
[1741572954119,7.87680062,127.95,127.93,0.05019601]
[1741572955423,7.8175,127.94,127.93,0.05019601]
[1741572956619,7.8197,127.91,127.88,31.02]
[1741572956809,0.05950062,127.95,127.88,31.02]
[1741572956810,33.78750567,127.96,127.88,31.02]
[1741572957617,0.05249992,127.93,127.91,0.05824295]
[1741572957816,7.8187,127.92,127.91,0.05824295]
[1741572958014,31.76120559,127.93,127.86,32.67238423]
[1741572958513,0.05249992,127.93,127.85,66.82550567]
[1741572958711,2.0788,127.96,127.85,66.82550567]
[1741572958907,31.70870567,127.95,127.85,66.82550567]
[1741572959112,0.05425192,127.92,127.89,0.05862548]
[1741572960613,62.78295759,127.92,127.82,2.1263]
[1741572960820,62.72870567,127.92,127.82,2.1263]
[1741572961319,31.70870567,127.92,127.82,2.1263]
[1741572961511,33.0988,127.96,127.83,31.70870567]
[1741572961716,7.8186,127.93,127.87,7.8217]
[1741572961919,0.0536685,127.91,127.88,0.05057395]
[1741572964922,0.0536685,127.91,127.89,7.82]
[1741572965121,0.0536685,127.91,127.9,31.02]
[1741572965517,288.92,127.97,127.9,31.02]
[1741572965725,288.92,127.97,127.91,7.8188]
[1741572966028,257.9,127.97,127.9,31.02]
[1741572966224,5.9723,128.02,127.9,62.72870567]
[1741572966522,31.02,128.01,127.9,62.72870567]
[1741572966725,0.05357102,127.97,127.95,0.0541692]
[1741572966916,0.05357102,127.97,127.95,7.8707692]
[1741572967121,0.05357102,127.97,127.95,0.0541692]
[1741572967322,257.96,128.04,127.98,7.8146]
[1741572967520,31.70870567,128.07,127.98,7.8146]
[1741572967723,6.1013,128.08,127.97,31.02]
[1741572968023,6.1013,128.08,127.99,31.70870567]
[1741572968219,118.20955825,128.11,128.02,31.70870567]
[1741572968421,217.48048078,128.13,128.05,7.8107]
[1741572968422,2.1141,128.13,128.05,7.8107]
[1741572968619,2.1141,128.13,128.05,0.05795407]
[1741572968620,0.0503107,128.08,128.05,0.05795407]
[1741572968828,0.0503107,128.08,128.03,31.02]
[1741572969023,7.8593107,128.08,128.05,0.057387]
[1741572969221,0.0503107,128.08,128.05,0.057387]
[1741572970026,9.7892107,128.08,128.05,0.057387]
[1741572970528,7.8097,128.07,128.05,0.057387]
[1741572971128,1.9797107,128.08,128.0,31.02]
[1741572971328,2.0202,128.07,128.0,31.02]
[1741572971529,7.8103,128.06,128.0,31.02]
[1741572971838,2.0202,128.07,128.0,31.02]
[1741572972024,31.0,128.06,127.97,7.8156]
[1741572972322,0.05342423,128.03,128.0,0.05818728]
[1741572972518,0.05342423,128.03,128.01,31.0]
[1741572972719,2.423e-05,128.03,128.02,7.8126]
[1741572973130,1.35910955,128.17,128.07,31.70870567]
[1741572973328,31.70870567,128.2,128.08,33.0921]
[1741572973526,31.70870567,128.2,128.1,31.70870567]
[1741572973731,39.51060567,128.2,128.14,7.8049]
[1741572974028,7.8019,128.2,128.14,38.8049]
[1741572974230,0.05446143,128.18,128.16,0.05657146]
[1741572974428,7.7997,128.24,128.17,31.0]
[1741572974724,32.34321057,128.25,128.17,31.0]
[1741572974929,32.34321057,128.25,128.21,7.8005]
[1741572975125,32.34321057,128.25,128.22,31.0]
[1741572975329,32.34321057,128.25,128.22,62.70870567]
[1741572975527,19.8695493,128.25,128.24,7.7992]
[1741572976527,19.8695493,128.25,128.22,82.23589831]
[1741572976729,19.8695493,128.25,128.22,0.04986869]
[1741572976929,19.8695493,128.25,128.22,31.22986869]
[1741572977322,19.8695493,128.25,128.19,31.82]
[1741572977529,0.05803873,128.25,128.19,31.82]
[1741572977731,51.24406835,128.25,128.19,31.82]
[1741572977930,51.24406835,128.25,128.16,32.02]
[1741572978442,32.02,128.24,128.12,1.9325]
[1741572978631,51.23683847,128.22,128.19,0.06002684]
[1741572978836,7.8022,128.2,128.13,32.06]
[1741572979026,32.12,128.21,128.1,83.34602962]
[1741572979632,32.12,128.21,128.1,32.16]
[1741572979837,51.18602962,128.19,128.1,32.16]
[1741572980031,0.0586552,128.17,128.14,0.05027131]
[1741572980230,0.0586552,128.17,128.15,32.22]
[1741572980430,40.0387,128.25,128.15,32.22]
[1741572980639,32.24,128.25,128.15,34.1999]
[1741572980831,2.0524,128.27,128.15,34.1999]
[1741572981033,2.0524,128.27,128.16,51.18602962]
[1741572981235,2.0524,128.27,128.2,7.8014]
[1741572981536,0.04946567,128.25,128.22,0.05027599]
[1741572981727,2.0524,128.33,128.22,51.23630561]
[1741572981943,2.0524,128.33,128.22,51.18602962]
[1741572982435,0.98113172,128.38,128.25,51.18602962]
[1741572982735,0.98113172,128.38,128.28,51.18602962]
[1741572982932,0.05012093,128.33,128.3,0.0533004]
[1741572983134,0.05012093,128.33,128.31,32.5]
[1741572983534,0.05012093,128.33,128.31,32.55955256]
[1741572984339,0.05012093,128.33,128.26,32.5]
[1741572984640,34.18,128.34,128.25,34.18]
[1741572984935,51.18602962,128.32,128.25,34.18]
[1741572985434,7.7969,128.28,128.25,34.18]
[1741572985643,0.98113172,128.38,128.25,281.26602962]
[1741572985841,0.98113172,128.38,128.3,51.18602962]
[1741572986142,0.05292839,128.33,128.31,34.2]
[1741572986336,0.98113172,128.38,128.31,34.2]
[1741572986534,0.98113172,128.38,128.33,51.18602962]
[1741572987339,0.98113172,128.38,128.33,58.97922962]
[1741572987536,0.05089239,128.37,128.34,0.05390194]
[1741572987754,0.05089239,128.37,128.35,34.22]
[1741572988235,0.05089239,128.37,128.34,0.05390194]
[1741572990941,0.05089239,128.37,128.35,34.48]
[1741572991641,9.239e-05,128.37,128.36,58.97792962]
[1741572991846,51.18602962,128.49,128.36,51.18602962]
[1741572992043,415.89581931,128.51,128.36,53.14822962]
[1741572992044,36.4819,128.48,128.36,53.14822962]
[1741572992239,7.786,128.46,128.36,53.14822962]
[1741572992739,36.4819,128.48,128.36,53.14822962]
[1741572992940,36.4819,128.48,128.36,1.9622]
[1741572993147,0.05766848,128.43,128.41,0.05227676]
[1741572993547,51.18602962,128.47,128.41,0.05227676]
[1741572993745,0.04932616,128.43,128.41,0.05227676]
[1741572994843,0.04932616,128.43,128.41,34.49227676]
[1741572995039,34.46,128.55,128.41,38.39227676]
[1741572995239,162.71891931,128.57,128.44,51.18602962]
[1741572995439,2.0842,128.56,128.45,34.68]
[1741572995650,7.7806,128.55,128.45,34.68]
[1741572995847,2.0842,128.56,128.49,7.7836]
[1741572996043,2.0842,128.56,128.45,34.68]
[1741572996248,0.05088338,128.54,128.51,0.04910184]
[1741572997141,34.81088338,128.54,128.42,34.76]
[1741572997345,34.81088338,128.54,128.43,7.7875]
[1741572997649,7.786,128.46,128.42,34.76]
[1741572997846,7.786,128.46,128.39,257.1]
[1741572997847,85.94602962,128.49,128.39,34.76]
[1741572998038,85.94602962,128.49,128.36,2.1083]
[1741572998039,0.05228372,128.45,128.43,0.05716766]
[1741572998240,34.81228372,128.45,128.36,34.76]
[1741572999753,34.76,128.45,128.36,34.76]
[1741573000145,34.76,128.45,128.36,42.5519]
[1741573000449,34.76,128.45,128.36,34.76]
[1741573000951,0.05685712,128.42,128.39,0.0583648]
[1741573001144,34.72,128.41,128.34,34.74]
[1741573002247,0.05161928,128.39,128.34,34.74]
[1741573002445,7.7913,128.37,128.36,0.05381698]
[1741573003248,0.05161928,128.39,128.36,0.05381698]
[1741573004160,0.05161928,128.39,128.28,51.18602962]
[1741573004453,34.68,128.4,128.3,7.7952]
[1741573004863,34.68,128.4,128.3,34.66]
[1741573005056,34.68,128.4,128.28,51.18602962]
[1741573005253,34.68,128.4,128.29,34.64]
[1741573005454,0.05754633,128.35,128.33,0.05854099]
[1741573005959,0.05712317,128.35,128.33,0.05854099]
[1741573010665,7.7932,128.34,128.33,0.05854099]
[1741573011166,7.7962,128.29,128.26,7.7978]
[1741573011366,85.74602962,128.36,128.24,34.56]
[1741573011563,51.18602962,128.33,128.24,34.56]
[1741573011760,36.5511,128.32,128.25,7.7986]
[1741573011961,36.5511,128.32,128.24,34.56]
[1741573012161,7.7968,128.28,128.27,0.05109092]
[1741573012672,0.05834762,128.3,128.27,0.05109092]
[1741573013358,7.7966,128.29,128.27,0.05109092]
[1741573013557,0.05834762,128.3,128.27,0.05109092]
[1741573013756,7.797,128.28,128.22,127.29439085]
[1741573013962,36.6349,128.31,128.22,119.49439085]
[1741573014265,36.6349,128.31,128.23,34.6]
[1741573015068,0.05657166,128.28,128.26,0.04913154]
[1741573015466,7.793,128.35,128.27,34.58]
[1741573015662,3.9822,128.38,128.28,51.18602962]
[1741573015971,7.7924,128.36,128.28,51.18602962]
[1741573016563,0.05726333,128.33,128.31,0.05817823]
[1741573016764,3.9822,128.38,128.31,34.75817823]
[1741573016964,0.05706755,128.33,128.31,34.75817823]
[1741573017167,3.9822,128.38,128.31,34.75817823]
[1741573017368,0.05588534,128.33,128.31,34.75817823]
[1741573017668,3.9822,128.38,128.31,85.94420785]
[1741573017869,0.05295028,128.33,128.31,85.94420785]
[1741573018067,11.7732,128.38,128.33,7.7934]
[1741573018270,3.9822,128.38,128.31,34.7]
[1741573018466,3.9822,128.38,128.34,0.05654339]
[1741573018467,0.05615769,128.37,128.34,0.05654339]
[1741573018672,0.05615769,128.37,128.35,42.5124]
[1741573019069,0.05615769,128.37,128.35,34.72]
[1741573019270,0.05615769,128.37,128.36,7.7919]
[1741573019572,5.769e-05,128.37,128.36,58.97792962]
[1741573021574,5.769e-05,128.37,128.36,7.7919]
[1741573021768,5.769e-05,128.37,128.35,34.72]
[1741573025675,7.79185769,128.37,128.34,0.05654339]
[1741573025877,5.769e-05,128.37,128.34,0.05654339]
[1741573026672,5.769e-05,128.37,128.36,7.7919]
[1741573026973,5.769e-05,128.37,128.34,0.05654339]
[1741573027474,5.769e-05,128.37,128.36,7.7919]
[1741573030578,1.9598,128.45,128.36,2.0954]
[1741573030782,7.7872,128.44,128.38,51.18602962]
[1741573031084,1.9598,128.45,128.38,51.18602962]
[1741573031675,0.05212356,128.43,128.38,51.18602962]
[1741573031882,0.05212356,128.43,128.4,0.05548605]
[1741573032082,0.05212356,128.43,128.41,34.8]
[1741573032790,0.05212356,128.43,128.41,42.5885]
[1741573032981,0.05212356,128.43,128.41,34.8]
[1741573033182,0.05212356,128.43,128.4,0.05548605]
[1741573033586,7.7887,128.42,128.4,0.05548605]
[1741573033783,0.05212356,128.43,128.4,0.05548605]
[1741573034791,7.7889,128.41,128.4,0.05548605]
[1741573035291,0.05212356,128.43,128.4,0.05548605]
[1741573035990,7.84022356,128.43,128.4,0.05548605]
[1741573036191,0.05212356,128.43,128.41,34.76]
[1741573036391,0.05212356,128.43,128.42,7.7883]
[1741573036592,0.05212356,128.43,128.41,34.76]
[1741573036985,0.05212356,128.43,128.42,7.7883]
[1741573037384,0.05212356,128.43,128.4,0.05548605]
[1741573037585,0.05212356,128.43,128.4,34.79548605]
[1741573038093,0.05212356,128.43,128.41,7.7885]
[1741573038590,0.05212356,128.43,128.4,34.79548605]
[1741573038787,2.098,128.51,128.42,51.18602962]
[1741573039090,308.12602962,128.59,128.48,51.18602962]
[1741573039292,4.0278,128.57,128.49,35.0]
[1741573039885,35.0,128.56,128.46,86.18602962]
[1741573040085,7.782,128.53,128.52,0.0527553]
[1741573040391,0.05566021,128.54,128.52,0.0527553]
[1741573040592,7.7816,128.53,128.52,0.0527553]
[1741573040791,0.05566021,128.54,128.46,86.18602962]
[1741573041094,35.0,128.56,128.46,86.18602962]
[1741573041696,4.0278,128.57,128.53,7.7816]
[1741573041893,0.05663684,128.52,128.5,34.99524939]
[1741573042095,4.0278,128.57,128.49,34.92]
[1741573042290,0.05676423,128.52,128.5,0.05610262]
[1741573042491,4.0278,128.57,128.5,0.05610262]
[1741573042692,0.05644554,128.52,128.5,7.83930262]
[1741573042895,7.7805,128.55,128.5,7.83930262]
[1741573043094,4.0278,128.57,128.5,0.05610262]
[1741573043095,0.05696984,128.52,128.5,0.05610262]
[1741573043289,2.0854,128.57,128.51,51.18602962]
[1741573043496,256.82,128.65,128.54,51.18602962]
[1741573043702,256.82,128.65,128.57,51.18602962]
[1741573043898,7.7745,128.65,128.6,7.7774]
[1741573044090,3.9677,128.66,128.59,34.96]
[1741573044402,0.05682283,128.64,128.63,7.7753]
[1741573044601,0.05682283,128.64,128.63,93.92132962]
[1741573044800,3.9677,128.74,128.63,86.14602962]
[1741573044999,9.777e-05,128.65,128.64,7.775]
[1741573045195,3.9677,128.74,128.63,34.96]
[1741573045400,11.7367,128.74,128.67,7.7732]
[1741573045601,11.7367,128.74,128.68,35.18]
[1741573045795,3.9677,128.74,128.68,86.36602962]
[1741573046001,2.039,128.74,128.68,86.36602962]
[1741573046202,0.05924343,128.72,128.7,0.05172224]
[1741573046400,85.86634768,128.77,128.7,0.05172224]
[1741573046701,85.86634768,128.77,128.71,51.18602962]
[1741573046907,85.86634768,128.77,128.74,51.18602962]
[1741573047197,85.86634768,128.77,128.74,58.95462962]
[1741573047400,85.86634768,128.77,128.74,51.18602962]
[1741573047594,7.7636,128.83,128.74,51.24395217]
[1741573047796,0.05536645,128.77,128.74,51.24395217]
[1741573048003,158.71581931,128.87,128.74,51.18602962]
[1741573048204,0.05590278,128.77,128.74,0.05164157]
[1741573048392,93.68812962,128.86,128.73,51.18602962]
[1741573048393,6.2221,128.86,128.73,51.18602962]
[1741573048595,0.05900982,128.77,128.76,51.18602962]
[1741573048804,6.2221,128.86,128.76,51.18602962]
[1741573049105,51.18602962,128.85,128.73,88.64602962]
[1741573049302,0.04969149,128.82,128.8,0.05021189]
[1741573049807,287.16305579,128.97,128.81,51.18602962]
[1741573050003,7.7571,128.94,128.86,51.18602962]
[1741573050198,134.70813648,128.97,128.87,37.74]
[1741573050704,134.70813648,128.97,128.87,88.92602962]
[1741573050896,0.05328607,128.92,128.9,51.24452651]